[Event "Live Chess"]
[Site "Chess.com"]
[Date "2024.06.02"]
[Round "-"]
[White "MagnersCarlsberg2870"]
[Black "asingardenof"]
[Result "1-0"]
[WhiteElo "1777"]
[BlackElo "621"]
[TimeControl "300"]
[EndTime "4:22:22 PDT"]
[Termination "MagnersCarlsberg2870 won by checkmate"]

1. d4 {[%clk 0:04:57.9]} 1... Nf6 {[%clk 0:04:58.1]} 2. Nf3 {[%clk 0:04:56.9]}
2... Nc6 {[%clk 0:04:56.5]} 3. e3 {[%clk 0:04:55.1]} 3... d5 {[%clk 0:04:54.8]}
4. Bd3 {[%clk 0:04:54.1]} 4... Be6 {[%clk 0:04:51]} 5. c3 {[%clk 0:04:53]} 5...
g6 {[%clk 0:04:49.1]} 6. Ng5 {[%clk 0:04:50.7]} 6... h6 {[%clk 0:04:43.8]} 7.
Nxe6 {[%clk 0:04:49.5]} 7... Qc8 {[%clk 0:04:40]} 8. Nxf8 {[%clk 0:04:46.8]}
8... Rxf8 {[%clk 0:04:38.1]} 9. Nd2 {[%clk 0:04:43.6]} 9... Ne4 {[%clk
0:04:22.5]} 10. Nxe4 {[%clk 0:04:41]} 10... dxe4 {[%clk 0:04:21.6]} 11. Bxe4
{[%clk 0:04:40.3]} 11... Qe6 {[%clk 0:04:18.2]} 12. Qf3 {[%clk 0:04:32.4]} 12...
f5 {[%clk 0:04:16.3]} 13. Bxc6+ {[%clk 0:04:28.7]} 13... Kf7 {[%clk 0:04:10.8]}
14. Bd5 {[%clk 0:04:26.3]} 14... Qxd5 {[%clk 0:04:06.2]} 15. Qxd5+ {[%clk
0:04:24.9]} 15... e6 {[%clk 0:04:06.1]} 16. Qd7+ {[%clk 0:04:23]} 16... Kg8
{[%clk 0:04:04.2]} 17. Qxe6+ {[%clk 0:04:21.4]} 17... Rf7 {[%clk 0:04:04.1]} 18.
Qxg6+ {[%clk 0:04:18.8]} 18... Rg7 {[%clk 0:04:02.9]} 19. Qxf5 {[%clk
0:04:14.2]} 19... Rf8 {[%clk 0:04:00.1]} 20. Qe6+ {[%clk 0:04:12.2]} 20... Rff7
{[%clk 0:03:58.7]} 21. Bd2 {[%clk 0:04:10.4]} 21... Kh7 {[%clk 0:03:57.2]} 22.
O-O-O {[%clk 0:04:08.4]} 22... Rxf2 {[%clk 0:03:54.7]} 23. Rdf1 {[%clk
0:04:05.9]} 23... Rxf1+ {[%clk 0:03:52.6]} 24. Rxf1 {[%clk 0:04:04.7]} 24... h5
{[%clk 0:03:48.4]} 25. Qf5+ {[%clk 0:04:02.4]} 25... Rg6 {[%clk 0:03:48.3]} 26.
Qxh5+ {[%clk 0:04:01.1]} 26... Rh6 {[%clk 0:03:47.1]} 27. Rf7+ {[%clk
0:04:00.2]} 27... Kg8 {[%clk 0:03:44.9]} 28. Qf5 {[%clk 0:03:52.9]} 28... Rxh2
{[%clk 0:03:38.7]} 29. Rf8+ {[%clk 0:03:51.7]} 29... Kg7 {[%clk 0:03:36.5]} 30.
Qf7+ {[%clk 0:03:50.4]} 30... Kh6 {[%clk 0:03:34.9]} 31. Rh8+ {[%clk 0:03:49.5]}
31... Kg5 {[%clk 0:03:33.4]} 32. Rxh2 {[%clk 0:03:48.3]} 32... Kg4 {[%clk
0:03:31.6]} 33. Qf4# {[%clk 0:03:46.6]} 1-0

[Event "Live Chess"]
[Site "Chess.com"]
[Date "2024.06.02"]
[Round "-"]
[White "Pablo_dmp"]
[Black "uselessduffer"]
[Result "1/2-1/2"]
[WhiteElo "2005"]
[BlackElo "2351"]
[TimeControl "300"]
[EndTime "4:22:29 PDT"]
[Termination "Game drawn by agreement"]

1. e4 {[%clk 0:04:57.8]} 1... g6 {[%clk 0:04:57.8]} 2. d4 {[%clk 0:04:56.6]}
2... Bg7 {[%clk 0:04:56.7]} 3. Nc3 {[%clk 0:04:56.2]} 3... d6 {[%clk 0:04:55.7]}
4. Be3 {[%clk 0:04:47.8]} 4... a6 {[%clk 0:04:54.1]} 5. Qd2 {[%clk 0:04:45.3]}
5... b5 {[%clk 0:04:52.4]} 6. O-O-O {[%clk 0:04:23.6]} 6... Nd7 {[%clk
0:04:47.8]} 7. f3 {[%clk 0:04:19.8]} 7... Bb7 {[%clk 0:04:39.5]} 8. Bd3 {[%clk
0:04:17]} 8... c5 {[%clk 0:03:50.7]} 9. d5 {[%clk 0:04:12.7]} 9... Qa5 {[%clk
0:03:29.7]} 10. Kb1 {[%clk 0:04:00.5]} 10... Nb6 {[%clk 0:03:21.6]} 11. Nh3
{[%clk 0:03:16.1]} 11... c4 {[%clk 0:02:53.2]} 12. Be2 {[%clk 0:03:11.7]} 12...
b4 {[%clk 0:02:51.6]} 13. Bxb6 {[%clk 0:03:08.7]} 13... Qxb6 {[%clk 0:02:47.4]}
14. Na4 {[%clk 0:03:06.9]} 14... Qa5 {[%clk 0:02:39.7]} 15. b3 {[%clk
0:03:04.8]} 15... Rc8 {[%clk 0:02:30.6]} 16. Qe3 {[%clk 0:02:54.2]} 16... Nf6
{[%clk 0:02:08.3]} 17. Qb6 {[%clk 0:02:47.7]} 17... Qxb6 {[%clk 0:02:06]} 18.
Nxb6 {[%clk 0:02:47.6]} 18... c3 {[%clk 0:01:46.8]} 19. Nxc8 {[%clk 0:02:46.1]}
19... Bxc8 {[%clk 0:01:44.5]} 20. Nf4 {[%clk 0:02:43.2]} 20... Nd7 {[%clk
0:01:42.8]} 21. h4 {[%clk 0:02:37.7]} 21... h6 {[%clk 0:01:33.4]} 22. g4 {[%clk
0:02:32.3]} 22... Kd8 {[%clk 0:01:26.6]} 23. Nd3 {[%clk 0:02:31]} 23... a5
{[%clk 0:01:25.1]} 24. Nf4 {[%clk 0:02:26.8]} 24... Kc7 {[%clk 0:01:22]} 25. Bb5
{[%clk 0:02:25.1]} 25... Ne5 {[%clk 0:01:16.8]} 26. Be2 {[%clk 0:02:21.4]} 26...
Bd7 {[%clk 0:01:15]} 27. Nd3 {[%clk 0:02:19.5]} 27... Nxd3 {[%clk 0:01:09.3]}
28. Bxd3 {[%clk 0:02:16.9]} 28... Be5 {[%clk 0:01:08.8]} 29. Rdf1 {[%clk
0:02:14.5]} 29... Bf4 {[%clk 0:01:06.7]} 30. Rf2 {[%clk 0:02:07.1]} 30... a4
{[%clk 0:01:04.5]} 31. Bc4 {[%clk 0:02:01.2]} 31... Ra8 {[%clk 0:01:02.5]} 32.
Rd1 {[%clk 0:01:55.4]} 32... Kb6 {[%clk 0:01:00.4]} 33. h5 {[%clk 0:01:47.7]}
33... g5 {[%clk 0:00:58.9]} 34. Re2 {[%clk 0:01:44.9]} 34... f6 {[%clk
0:00:56.1]} 35. Rg2 {[%clk 0:01:41.3]} 35... Kc5 {[%clk 0:00:55]} 36. Re2 {[%clk
0:01:40.2]} 1/2-1/2

[Event "Live Chess"]
[Site "Chess.com"]
[Date "2024.06.02"]
[Round "-"]
[White "juniortay"]
[Black "IgorSchukin"]
[Result "1-0"]
[WhiteElo "2364"]
[BlackElo "1769"]
[TimeControl "300"]
[EndTime "4:22:33 PDT"]
[Termination "juniortay won on time"]

1. e4 {[%clk 0:04:57.6]} 1... c5 {[%clk 0:04:58]} 2. Nf3 {[%clk 0:04:56.3]} 2...
e6 {[%clk 0:04:57.5]} 3. d4 {[%clk 0:04:55.5]} 3... cxd4 {[%clk 0:04:56.2]} 4.
Bg5 {[%clk 0:04:54.8]} 4... Be7 {[%clk 0:04:54.2]} 5. Bxe7 {[%clk 0:04:53.3]}
5... Nxe7 {[%clk 0:04:52.9]} 6. Qxd4 {[%clk 0:04:52.8]} 6... Nbc6 {[%clk
0:04:51.6]} 7. Qxg7 {[%clk 0:04:50.9]} 7... Rg8 {[%clk 0:04:49]} 8. Qxh7 {[%clk
0:04:49.8]} 8... d5 {[%clk 0:04:42.1]} 9. g3 {[%clk 0:04:47.8]} 9... dxe4 {[%clk
0:04:39.6]} 10. Qxe4 {[%clk 0:04:44.2]} 10... Qd5 {[%clk 0:04:33.2]} 11. Bd3
{[%clk 0:04:41.5]} 11... f5 {[%clk 0:04:23.6]} 12. Qxd5 {[%clk 0:04:40.1]} 12...
Nxd5 {[%clk 0:04:21.1]} 13. O-O {[%clk 0:04:39]} 13... Bd7 {[%clk 0:04:19.6]}
14. Re1 {[%clk 0:04:37.9]} 14... O-O-O {[%clk 0:04:18.3]} 15. Nbd2 {[%clk
0:04:36.9]} 15... f4 {[%clk 0:04:15.8]} 16. Ne5 {[%clk 0:04:32.7]} 16... fxg3
{[%clk 0:04:09.5]} 17. fxg3 {[%clk 0:04:29.1]} 17... Nxe5 {[%clk 0:03:59.3]} 18.
Rxe5 {[%clk 0:04:26.6]} 18... Nf4 {[%clk 0:03:57.4]} 19. Bf1 {[%clk 0:03:38.2]}
19... Bc6 {[%clk 0:03:46.2]} 20. Nb3 {[%clk 0:03:35.4]} 20... Rd6 {[%clk
0:03:16.4]} 21. Rae1 {[%clk 0:03:32.8]} 21... Bd5 {[%clk 0:03:09.3]} 22. Kf2
{[%clk 0:03:25]} 22... Ng6 {[%clk 0:02:59.9]} 23. R5e2 {[%clk 0:03:11.8]} 23...
Rf8+ {[%clk 0:02:25.8]} 24. Kg1 {[%clk 0:03:10.3]} 24... b6 {[%clk 0:02:02.1]}
25. Bh3 {[%clk 0:02:54.4]} 25... Kd7 {[%clk 0:01:35.8]} 26. Rf2 {[%clk 0:02:53]}
26... Rg8 {[%clk 0:01:29.6]} 27. Rf7+ {[%clk 0:02:47]} 27... Kc6 {[%clk
0:01:27.4]} 28. Rxa7 {[%clk 0:02:37.9]} 28... Nh4 {[%clk 0:01:18.4]} 29. Nd4+
{[%clk 0:02:32.3]} 29... Kc5 {[%clk 0:00:27.7]} 30. c3 {[%clk 0:02:29.9]} 30...
Nf3+ {[%clk 0:00:13.3]} 31. Nxf3 {[%clk 0:02:28.2]} 31... Bxf3 {[%clk 0:00:13]}
32. Rc7+ {[%clk 0:02:17.9]} 1-0

[Event "Live Chess"]
[Site "Chess.com"]
[Date "2024.06.02"]
[Round "-"]
[White "AlanBstard10"]
[Black "elis06"]
[Result "0-1"]
[WhiteElo "1225"]
[BlackElo "2317"]
[TimeControl "300"]
[EndTime "4:22:56 PDT"]
[Termination "elis06 won by checkmate"]

1. b4 {[%clk 0:04:55.2]} 1... e6 {[%clk 0:04:58.6]} 2. Bb2 {[%clk 0:04:52.6]}
2... Nf6 {[%clk 0:04:57]} 3. a3 {[%clk 0:04:50.7]} 3... d5 {[%clk 0:04:56]} 4.
c4 {[%clk 0:04:48.4]} 4... dxc4 {[%clk 0:04:53.1]} 5. e3 {[%clk 0:04:45.3]} 5...
c5 {[%clk 0:04:46.3]} 6. bxc5 {[%clk 0:04:43.4]} 6... Bxc5 {[%clk 0:04:46.2]} 7.
Bxc4 {[%clk 0:04:36.1]} 7... O-O {[%clk 0:04:45]} 8. Nc3 {[%clk 0:04:32.1]} 8...
Nc6 {[%clk 0:04:42.8]} 9. Be2 {[%clk 0:04:22.3]} 9... e5 {[%clk 0:04:35.5]} 10.
Nf3 {[%clk 0:04:20.1]} 10... e4 {[%clk 0:04:34.1]} 11. Ng1 {[%clk 0:04:08.2]}
11... Be6 {[%clk 0:04:31.7]} 12. Bb5 {[%clk 0:04:00.7]} 12... Ne5 {[%clk
0:04:29.7]} 13. Nce2 {[%clk 0:03:56.8]} 13... a6 {[%clk 0:04:27.3]} 14. Ba4
{[%clk 0:03:49.3]} 14... Nd3+ {[%clk 0:04:26]} 15. Kf1 {[%clk 0:03:39.2]} 15...
Nxb2 {[%clk 0:04:23.4]} 16. Qc2 {[%clk 0:03:35.7]} 16... Nxa4 {[%clk 0:04:21.6]}
17. Qxa4 {[%clk 0:03:34.7]} 17... b5 {[%clk 0:04:20.2]} 18. Qc2 {[%clk
0:03:27.6]} 18... Bc4 {[%clk 0:04:18]} 19. Ke1 {[%clk 0:03:24.6]} 19... Rc8
{[%clk 0:04:16.1]} 20. Nc3 {[%clk 0:03:19]} 20... Bd3 {[%clk 0:04:11.8]} 21. Qb3
{[%clk 0:03:12.4]} 21... a5 {[%clk 0:04:03.3]} 22. Nge2 {[%clk 0:03:07.8]} 22...
b4 {[%clk 0:04:01.4]} 23. axb4 {[%clk 0:03:06.4]} 23... axb4 {[%clk 0:04:00.4]}
24. Nd1 {[%clk 0:02:57.3]} 24... Bxe2 {[%clk 0:03:59]} 25. Kxe2 {[%clk
0:02:55.9]} 25... Qd7 {[%clk 0:03:57.2]} 26. f3 {[%clk 0:02:45.3]} 26... exf3+
{[%clk 0:03:55.3]} 27. gxf3 {[%clk 0:02:43.7]} 27... Qb5+ {[%clk 0:03:53.3]} 28.
Kf2 {[%clk 0:02:41.7]} 28... Rcd8 {[%clk 0:03:49.6]} 29. d4 {[%clk 0:02:31.9]}
29... Rxd4 {[%clk 0:03:42.4]} 30. exd4 {[%clk 0:02:30.6]} 30... Bxd4+ {[%clk
0:03:42.3]} 31. Ne3 {[%clk 0:02:27.6]} 31... Bxa1 {[%clk 0:03:32.1]} 32. Rxa1
{[%clk 0:02:25.8]} 32... Qh5 {[%clk 0:03:29.8]} 33. Kg2 {[%clk 0:02:07.5]} 33...
Qg5+ {[%clk 0:03:24.5]} 34. Kf2 {[%clk 0:02:04.7]} 34... Qh4+ {[%clk 0:03:21.4]}
35. Kg2 {[%clk 0:02:00.1]} 35... Nh5 {[%clk 0:03:17.2]} 36. Rd1 {[%clk
0:01:37.8]} 36... Nf4+ {[%clk 0:03:15.2]} 37. Kf1 {[%clk 0:01:31.7]} 37... Qxh2
{[%clk 0:03:09.2]} 38. Ke1 {[%clk 0:01:24.7]} 38... Qe2# {[%clk 0:03:06.5]} 0-1

[Event "Live Chess"]
[Site "Chess.com"]
[Date "2024.06.02"]
[Round "-"]
[White "Kyrylo7770"]
[Black "GoldsmanB"]
[Result "1-0"]
[WhiteElo "1652"]
[BlackElo "1101"]
[TimeControl "300"]
[EndTime "4:22:57 PDT"]
[Termination "Kyrylo7770 won by checkmate"]

1. d4 {[%clk 0:04:59.1]} 1... Nf6 {[%clk 0:04:57.6]} 2. Nf3 {[%clk 0:04:57.9]}
2... e6 {[%clk 0:04:56.2]} 3. Bg5 {[%clk 0:04:57.3]} 3... Be7 {[%clk 0:04:53.3]}
4. e3 {[%clk 0:04:56.8]} 4... d5 {[%clk 0:04:51.1]} 5. h4 {[%clk 0:04:56.2]}
5... Nc6 {[%clk 0:04:49]} 6. c4 {[%clk 0:04:55.3]} 6... Qd6 {[%clk 0:04:42.6]}
7. c5 {[%clk 0:04:53.7]} 7... Qd7 {[%clk 0:04:38.6]} 8. Bf4 {[%clk 0:04:52.4]}
8... O-O {[%clk 0:04:27.4]} 9. Nc3 {[%clk 0:04:50.8]} 9... Nb4 {[%clk 0:04:24]}
10. Ne5 {[%clk 0:04:49.5]} 10... Qd8 {[%clk 0:04:13.2]} 11. g3 {[%clk
0:04:48.3]} 11... Ne4 {[%clk 0:04:08]} 12. Nxe4 {[%clk 0:04:41.7]} 12... dxe4
{[%clk 0:04:07.9]} 13. a3 {[%clk 0:04:41]} 13... Nc6 {[%clk 0:04:02.5]} 14. Qg4
{[%clk 0:04:40.4]} 14... Nxe5 {[%clk 0:04:00.2]} 15. Bxe5 {[%clk 0:04:39.9]}
15... Bf6 {[%clk 0:03:58.5]} 16. Qxe4 {[%clk 0:04:38]} 16... Bxe5 {[%clk
0:03:57.2]} 17. Qxe5 {[%clk 0:04:37.6]} 17... f6 {[%clk 0:03:54.6]} 18. Qe4
{[%clk 0:04:32]} 18... Bd7 {[%clk 0:03:49.8]} 19. Bd3 {[%clk 0:04:30.5]} 19...
c6 {[%clk 0:03:47.6]} 20. Qxh7+ {[%clk 0:04:29.3]} 20... Kf7 {[%clk 0:03:46]}
21. Bg6+ {[%clk 0:04:29]} 21... Ke7 {[%clk 0:03:44.6]} 22. Qxg7+ {[%clk
0:04:28.6]} 22... Rf7 {[%clk 0:03:42.1]} 23. Qxf7# {[%clk 0:04:28.2]} 1-0

[Event "Live Chess"]
[Site "Chess.com"]
[Date "2024.06.02"]
[Round "-"]
[White "vincents82"]
[Black "Bradfield133"]
[Result "1-0"]
[WhiteElo "1996"]
[BlackElo "1844"]
[TimeControl "300"]
[EndTime "4:23:03 PDT"]
[Termination "vincents82 won by resignation"]

1. e4 {[%clk 0:04:57.9]} 1... c5 {[%clk 0:04:58.9]} 2. Nf3 {[%clk 0:04:56.7]}
2... Nc6 {[%clk 0:04:58]} 3. d4 {[%clk 0:04:56.1]} 3... cxd4 {[%clk 0:04:57.2]}
4. Nxd4 {[%clk 0:04:55.6]} 4... g6 {[%clk 0:04:56.6]} 5. c4 {[%clk 0:04:54.4]}
5... Nf6 {[%clk 0:04:54.7]} 6. Nc3 {[%clk 0:04:52.6]} 6... Nxd4 {[%clk
0:04:51.2]} 7. Qxd4 {[%clk 0:04:51.9]} 7... d6 {[%clk 0:04:50.2]} 8. Be3 {[%clk
0:04:50.9]} 8... Bg7 {[%clk 0:04:48.6]} 9. f3 {[%clk 0:04:48.4]} 9... O-O {[%clk
0:04:47.4]} 10. Qd2 {[%clk 0:04:47.8]} 10... a5 {[%clk 0:04:45]} 11. Be2 {[%clk
0:04:47.1]} 11... a4 {[%clk 0:04:43.5]} 12. O-O {[%clk 0:04:46.6]} 12... Qa5
{[%clk 0:04:42.2]} 13. Rfd1 {[%clk 0:04:45.5]} 13... Be6 {[%clk 0:04:38.4]} 14.
Rac1 {[%clk 0:04:43.6]} 14... Rfc8 {[%clk 0:04:34.1]} 15. Nd5 {[%clk 0:04:42.6]}
15... Qxd2 {[%clk 0:04:07.1]} 16. Bxd2 {[%clk 0:04:41.2]} 16... Nxd5 {[%clk
0:04:00.2]} 17. cxd5 {[%clk 0:04:40.3]} 17... Bd7 {[%clk 0:03:58.4]} 18. b3
{[%clk 0:04:24.7]} 18... axb3 {[%clk 0:03:54.7]} 19. axb3 {[%clk 0:04:23.7]}
19... Rxc1 {[%clk 0:03:23.6]} 20. Bxc1 {[%clk 0:04:15.2]} 20... Ra1 {[%clk
0:03:11.5]} 21. Be3 {[%clk 0:04:04.7]} 21... f5 {[%clk 0:02:52.8]} 22. Rxa1
{[%clk 0:04:01.4]} 22... Bxa1 {[%clk 0:02:50.4]} 23. Kf1 {[%clk 0:03:59.1]}
23... Kf7 {[%clk 0:02:29]} 24. Ke1 {[%clk 0:03:56.2]} 24... Bc3+ {[%clk
0:02:18]} 25. Kd1 {[%clk 0:03:54.7]} 25... fxe4 {[%clk 0:02:09.1]} 26. fxe4
{[%clk 0:03:53.5]} 26... Kf6 {[%clk 0:02:07.2]} 27. Kc2 {[%clk 0:03:51.8]} 27...
Be5 {[%clk 0:02:02.1]} 28. h4 {[%clk 0:03:44.7]} 28... h5 {[%clk 0:01:52.5]} 29.
Bg5+ {[%clk 0:03:43.1]} 29... Kf7 {[%clk 0:01:51.6]} 30. Bc4 {[%clk 0:03:21.3]}
30... Bf6 {[%clk 0:01:33.8]} 31. Kd2 {[%clk 0:03:00.5]} 31... e6 {[%clk
0:01:17.3]} 32. dxe6+ {[%clk 0:02:43.7]} 32... Bxe6 {[%clk 0:01:15.9]} 33. Bd5
{[%clk 0:02:34.9]} 33... Bxd5 {[%clk 0:01:04.6]} 34. exd5 {[%clk 0:02:33.6]}
34... Bxg5+ {[%clk 0:01:04.1]} 35. hxg5 {[%clk 0:02:33.1]} 35... Ke7 {[%clk
0:01:02.8]} 36. Kc3 {[%clk 0:02:32.6]} 36... Kd7 {[%clk 0:00:59.2]} 37. Kb4
{[%clk 0:02:31.7]} 37... Kc7 {[%clk 0:00:58.1]} 38. Kb5 {[%clk 0:02:30.8]} 38...
Kb8 {[%clk 0:00:55.4]} 39. Kb6 {[%clk 0:02:24.2]} 39... Kc8 {[%clk 0:00:54.1]}
40. b4 {[%clk 0:01:55.4]} 40... h4 {[%clk 0:00:52.9]} 41. Ka7 {[%clk 0:01:51.6]}
41... Kc7 {[%clk 0:00:37.1]} 42. b5 {[%clk 0:01:44.4]} 42... b6 {[%clk
0:00:35.8]} 43. Ka6 {[%clk 0:01:42.7]} 1-0

[Event "Live Chess"]
[Site "Chess.com"]
[Date "2024.06.02"]
[Round "-"]
[White "Andriy_Yaremovych"]
[Black "matt1979"]
[Result "1-0"]
[WhiteElo "1606"]
[BlackElo "1409"]
[TimeControl "300"]
[EndTime "4:23:08 PDT"]
[Termination "Andriy_Yaremovych won on time"]

1. e4 {[%clk 0:04:55.1]} 1... d6 {[%clk 0:04:58.7]} 2. Nc3 {[%clk 0:04:55]} 2...
Nf6 {[%clk 0:04:57.1]} 3. f4 {[%clk 0:04:53.6]} 3... e5 {[%clk 0:04:55.1]} 4. f5
{[%clk 0:04:52.5]} 4... Be7 {[%clk 0:04:52.5]} 5. Nf3 {[%clk 0:04:51.7]} 5... c6
{[%clk 0:04:51.8]} 6. Bc4 {[%clk 0:04:49.3]} 6... O-O {[%clk 0:04:50.4]} 7. d3
{[%clk 0:04:48.3]} 7... b5 {[%clk 0:04:49.6]} 8. Bb3 {[%clk 0:04:46.6]} 8... a5
{[%clk 0:04:48.4]} 9. a3 {[%clk 0:04:45.4]} 9... Na6 {[%clk 0:04:29.5]} 10. Ba2
{[%clk 0:04:43.8]} 10... Nc5 {[%clk 0:04:25.6]} 11. Be3 {[%clk 0:04:40.8]} 11...
Ncd7 {[%clk 0:04:15.2]} 12. h3 {[%clk 0:04:32.7]} 12... Bb7 {[%clk 0:04:12.7]}
13. Qd2 {[%clk 0:04:30.6]} 13... d5 {[%clk 0:04:08.8]} 14. exd5 {[%clk
0:04:20.9]} 14... cxd5 {[%clk 0:04:00.8]} 15. d4 {[%clk 0:04:19.8]} 15... e4
{[%clk 0:03:55.7]} 16. Ng1 {[%clk 0:04:05.4]} 16... Bc6 {[%clk 0:03:37.7]} 17.
Nce2 {[%clk 0:03:45.7]} 17... b4 {[%clk 0:03:25.4]} 18. axb4 {[%clk 0:03:42.3]}
18... Bxb4 {[%clk 0:03:22.5]} 19. c3 {[%clk 0:03:40.9]} 19... Bd6 {[%clk
0:03:18.3]} 20. O-O-O {[%clk 0:03:35.6]} 20... Qb6 {[%clk 0:03:09.4]} 21. g4
{[%clk 0:03:32.7]} 21... h6 {[%clk 0:02:57.2]} 22. Nf4 {[%clk 0:03:31.2]} 22...
Rab8 {[%clk 0:02:42.3]} 23. Nge2 {[%clk 0:03:23.5]} 23... Rfc8 {[%clk
0:02:20.4]} 24. Rh2 {[%clk 0:03:16.6]} 24... Ba4 {[%clk 0:02:18]} 25. Rg1 {[%clk
0:03:11.4]} 25... Bb3 {[%clk 0:02:01.9]} 26. Bb1 {[%clk 0:03:09.2]} 26... a4
{[%clk 0:01:55.6]} 27. g5 {[%clk 0:03:07.9]} 27... hxg5 {[%clk 0:01:54.1]} 28.
Rxg5 {[%clk 0:03:07.8]} 28... a3 {[%clk 0:01:50.9]} 29. Ng3 {[%clk 0:03:00.8]}
29... a2 {[%clk 0:01:28.6]} 30. Bxa2 {[%clk 0:02:46.6]} 30... Bxa2 {[%clk
0:01:27.7]} 31. Rg2 {[%clk 0:02:40.9]} 31... Ba3 {[%clk 0:01:24.2]} 32. Ngh5
{[%clk 0:02:37.7]} 32... Rxc3+ {[%clk 0:01:00.7]} 33. Qxc3 {[%clk 0:02:35.1]}
33... Bb4 {[%clk 0:00:37.3]} 34. Rxg7+ {[%clk 0:02:31.1]} 34... Kf8 {[%clk
0:00:32.6]} 35. Qc2 {[%clk 0:02:26.8]} 35... Rb7 {[%clk 0:00:21.6]} 36. Kd1
{[%clk 0:02:14.8]} 36... Rc7 {[%clk 0:00:19.7]} 37. Qf2 {[%clk 0:02:00]} 37...
Qc6 {[%clk 0:00:17.8]} 38. Qc2 {[%clk 0:01:52.4]} 38... Qb6 {[%clk 0:00:16.3]}
39. Qf2 {[%clk 0:01:43.1]} 39... Qc6 {[%clk 0:00:14.2]} 40. Nxf6 {[%clk
0:01:39]} 40... Nxf6 {[%clk 0:00:12.5]} 41. Bd2 {[%clk 0:01:31.2]} 41... Bxd2
{[%clk 0:00:11.3]} 42. Qxd2 {[%clk 0:01:29.8]} 42... Qa4+ {[%clk 0:00:08.2]} 43.
Ke1 {[%clk 0:01:28.2]} 43... Qc4 {[%clk 0:00:04.5]} 44. Kf2 {[%clk 0:01:24.4]}
44... Qb3 {[%clk 0:00:03]} 45. Kg1 {[%clk 0:01:23]} 45... Rc1+ {[%clk 0:00:02]}
46. Kh2 {[%clk 0:01:21.6]} 1-0

[Event "Live Chess"]
[Site "Chess.com"]
[Date "2024.06.02"]
[Round "-"]
[White "DJ_Lambton"]
[Black "halfberg"]
[Result "1-0"]
[WhiteElo "1800"]
[BlackElo "1898"]
[TimeControl "300"]
[EndTime "4:23:11 PDT"]
[Termination "DJ_Lambton won on time"]

1. c4 {[%clk 0:04:58.3]} 1... Nf6 {[%clk 0:04:58.3]} 2. g3 {[%clk 0:04:57.7]}
2... g6 {[%clk 0:04:56.9]} 3. Bg2 {[%clk 0:04:57.1]} 3... Bg7 {[%clk 0:04:56]}
4. Nc3 {[%clk 0:04:56.7]} 4... O-O {[%clk 0:04:54.8]} 5. e3 {[%clk 0:04:56.4]}
5... c6 {[%clk 0:04:53.3]} 6. Nge2 {[%clk 0:04:56]} 6... d5 {[%clk 0:04:49.8]}
7. cxd5 {[%clk 0:04:54.8]} 7... cxd5 {[%clk 0:04:41.9]} 8. O-O {[%clk
0:04:53.7]} 8... Nc6 {[%clk 0:04:40.3]} 9. b3 {[%clk 0:04:46.8]} 9... e5 {[%clk
0:04:19.5]} 10. d4 {[%clk 0:04:42.7]} 10... Bg4 {[%clk 0:04:06.4]} 11. Qd2
{[%clk 0:04:38.3]} 11... e4 {[%clk 0:04:02.1]} 12. Nf4 {[%clk 0:04:33]} 12...
Bf3 {[%clk 0:03:55.3]} 13. Ba3 {[%clk 0:04:27.8]} 13... Re8 {[%clk 0:03:52.1]}
14. Rac1 {[%clk 0:04:25.8]} 14... Bxg2 {[%clk 0:03:47.8]} 15. Kxg2 {[%clk
0:04:24.9]} 15... g5 {[%clk 0:03:35.2]} 16. Nfe2 {[%clk 0:04:22.7]} 16... h5
{[%clk 0:03:25.5]} 17. Nb5 {[%clk 0:04:19.8]} 17... Re6 {[%clk 0:03:20.6]} 18.
Rc2 {[%clk 0:04:02.5]} 18... a6 {[%clk 0:03:18.5]} 19. Nbc3 {[%clk 0:03:59.7]}
19... Bh6 {[%clk 0:03:06.2]} 20. Rfc1 {[%clk 0:03:56]} 20... Qd7 {[%clk
0:02:49.8]} 21. Na4 {[%clk 0:03:54]} 21... Ree8 {[%clk 0:02:30.7]} 22. Nc5
{[%clk 0:03:51.9]} 22... Qc8 {[%clk 0:02:25.8]} 23. Nc3 {[%clk 0:03:47]} 23...
h4 {[%clk 0:02:18.4]} 24. N3a4 {[%clk 0:03:42.2]} 24... Qg4 {[%clk 0:02:14.1]}
25. Qe2 {[%clk 0:03:35.8]} 25... Qf5 {[%clk 0:01:55.3]} 26. Rf1 {[%clk
0:03:18.2]} 26... Kg7 {[%clk 0:01:50.1]} 27. Nb6 {[%clk 0:02:48.7]} 27... hxg3
{[%clk 0:01:45.5]} 28. fxg3 {[%clk 0:02:44.7]} 28... Qg6 {[%clk 0:01:38.6]} 29.
Nxa8 {[%clk 0:02:40]} 29... Rxa8 {[%clk 0:01:36.9]} 30. Qf2 {[%clk 0:02:19.2]}
30... Ng4 {[%clk 0:01:28.7]} 31. Qe2 {[%clk 0:02:11.2]} 31... Nf6 {[%clk
0:01:23.8]} 32. Nxb7 {[%clk 0:01:59.9]} 32... Rh8 {[%clk 0:01:21.7]} 33. Nd6
{[%clk 0:01:52.2]} 33... Ne7 {[%clk 0:01:18.8]} 34. Qf2 {[%clk 0:01:50.5]} 34...
g4 {[%clk 0:01:13.6]} 35. Rc7 {[%clk 0:01:39.7]} 35... Neg8 {[%clk 0:01:00]} 36.
Nxf7 {[%clk 0:01:30.2]} 36... Qxf7 {[%clk 0:00:52.5]} 37. Rxf7+ {[%clk
0:01:27.3]} 37... Kxf7 {[%clk 0:00:52.4]} 38. Bd6 {[%clk 0:01:25]} 38... Bg5
{[%clk 0:00:43.8]} 39. Be5 {[%clk 0:01:23.3]} 39... Rh6 {[%clk 0:00:40.4]} 40.
Qf5 {[%clk 0:01:22.1]} 40... Rg6 {[%clk 0:00:38.5]} 41. Qd7+ {[%clk 0:01:18.9]}
41... Kf8 {[%clk 0:00:33.5]} 42. Bxf6 {[%clk 0:01:15.1]} 42... Bxf6 {[%clk
0:00:30.9]} 43. Qxd5 {[%clk 0:01:13]} 43... Ne7 {[%clk 0:00:27.7]} 44. Qxe4
{[%clk 0:01:09.4]} 44... Kg7 {[%clk 0:00:25.3]} 45. Rxf6 {[%clk 0:01:05]} 45...
Kxf6 {[%clk 0:00:23]} 46. Qe5+ {[%clk 0:01:04.2]} 46... Kf7 {[%clk 0:00:21.1]}
47. d5 {[%clk 0:01:01.5]} 47... Rf6 {[%clk 0:00:08.8]} 48. d6 {[%clk 0:00:59.3]}
48... Nf5 {[%clk 0:00:03.1]} 49. d7 {[%clk 0:00:56.6]} 1-0